fUST/lending_fUST_20250720
["ID","MTS","AMOUNT","RATE_DAILY","PERIOD"]
[373350110,1752961841749,-460.0,0.0001827,2]
[373350111,1752961841759,-460.0,0.00018271,2]
[373350112,1752961841768,-460.0,0.00018271,2]
[373350113,1752961841777,-460.0,0.00018271,2]
[373350114,1752961841786,-460.0,0.00018271,2]
[373350115,1752961841795,-509.72,0.00018271,2]
[373350116,1752961841804,-460.0,0.00018271,2]
[373350117,1752961841813,-460.0,0.00018271,2]
[373350118,1752961841823,-460.0,0.00018271,2]
[373350119,1752961841832,-460.0,0.00018271,2]
[373350120,1752961841841,-460.0,0.00018271,2]
[373350121,1752961841850,-460.0,0.00018271,2]
[373350122,1752961841859,-460.0,0.00018271,2]
[373350123,1752961841868,-232.11,0.00018271,2]
[373350124,1752961841877,-460.0,0.00018271,2]
[373350125,1752961841886,-460.0,0.00018271,2]
[373350126,1752961841896,-460.0,0.00018271,2]
[373350127,1752961841905,-414.5,0.00018271,2]
[373350128,1752961841914,-460.0,0.00018271,2]
[373350129,1752961841924,-460.0,0.00018271,2]
[373350130,1752961841933,-555.37,0.00018271,2]
[373350131,1752961841943,-460.0,0.00018271,2]
[373350132,1752961841952,-460.0,0.00018271,2]
[373350133,1752961841962,-460.0,0.00018271,2]
[373350134,1752961841972,-1144.31,0.00018271,2]
[373350135,1752961841981,-460.0,0.00018271,2]
[373350136,1752961841991,-460.0,0.00018271,2]
[373350137,1752961842001,-460.0,0.00018271,2]
[373350138,1752961842010,-460.0,0.00018271,2]
[373350139,1752961842019,-460.0,0.00018271,2]
[373350140,1752961842028,-460.0,0.00018271,2]
[373350141,1752961842038,-1792.78,0.00018271,2]
[373350142,1752961842047,-460.0,0.00018271,2]
[373350143,1752961842057,-1310.48,0.00018271,2]
[373350144,1752961842066,-460.0,0.00018271,2]
[373350145,1752961842076,-460.0,0.00018271,2]
[373350146,1752961842085,-460.0,0.00018271,2]
[373350147,1752961842095,-460.0,0.00018271,2]
[373350148,1752961842104,-460.0,0.00018271,2]
[373350149,1752961842114,-460.0,0.00018271,2]
[373350150,1752961842124,-460.0,0.00018271,2]
[373350151,1752961842138,-460.0,0.00018271,2]
[373350152,1752961842148,-460.0,0.00018271,2]
[373350153,1752961842157,-460.0,0.00018271,2]
[373350154,1752961842278,-571.29,0.00018271,2]
[373350155,1752961842288,-512.3,0.00018271,2]
[373350156,1752961842297,-460.0,0.00018271,2]
[373350157,1752961842306,-460.0,0.00018271,2]
[373350158,1752961842315,-460.0,0.00018271,2]
[373350159,1752961842324,-460.0,0.00018271,2]
[373350160,1752961842333,-460.0,0.00018271,2]
[373350161,1752961842343,-460.0,0.00018271,2]
[373350162,1752961842352,-1418.71,0.00018271,2]
[373350163,1752961842362,-460.0,0.00018271,2]
[373350164,1752961842371,-460.0,0.00018271,2]
[373350165,1752961842379,-460.0,0.00018271,2]
[373350166,1752961842388,-500.0,0.00018271,2]
[373350167,1752961842398,-460.0,0.00018271,2]
[373350168,1752961842407,-460.0,0.00018271,2]
[373350169,1752961842418,-460.0,0.00018271,2]
[373350170,1752961842431,-460.0,0.00018271,2]
[373350171,1752961842441,-460.0,0.00018271,2]
[373350172,1752961842450,-460.0,0.00018271,2]
[373350173,1752961842459,-151.30885179,0.00018271,2]
[373350174,1752961842469,-460.0,0.00018271,2]
[373350175,1752961842478,-460.0,0.00018271,2]
[373350176,1752961842488,-401.83634997,0.00018271,2]
[373350177,1752961842498,-460.0,0.00018271,2]
[373350178,1752961842507,-501.87592283,0.00018271,2]
[373350179,1752961842516,-460.0,0.00018271,2]
[373350180,1752961842526,-460.0,0.00018271,2]
[373350181,1752961842535,-460.0,0.00018271,2]
[373350182,1752961842545,-460.0,0.00018272,2]
[373350183,1752961842554,-460.0,0.00018272,2]
[373350184,1752961842563,-460.0,0.00018272,2]
[373350185,1752961842572,-460.0,0.00018272,2]
[373350186,1752961842581,-460.0,0.00018272,2]
[373350187,1752961842590,-460.0,0.00018272,2]
[373350188,1752961842600,-460.0,0.00018272,2]
[373350189,1752961842609,-460.0,0.00018272,2]
[373350190,1752961842619,-460.0,0.00018272,2]
[373350191,1752961842628,-500.0,0.00018272,2]
[373350192,1752961842638,-791.31,0.00018272,2]
[373350193,1752961842647,-460.0,0.00018272,2]
[373350194,1752961842656,-543.72,0.00018272,2]
[373350195,1752961842666,-1978.99,0.00018272,2]
[373350196,1752961842675,-460.0,0.00018273,2]
[373350197,1752961842684,-460.0,0.00018273,2]
[373350198,1752961842693,-460.0,0.00018273,2]
[373350199,1752961842703,-155.44150554,0.00018273,2]
[373350200,1752961842712,-462.91791883,0.00018273,2]
[373350201,1752961842723,-460.0,0.00018273,2]
[373350202,1752961842735,-162.66753133,0.00018273,2]
[373350203,1752961842744,-460.0,0.00018273,2]
[373350204,1752961842753,-460.0,0.00018273,2]
[373350205,1752961842762,-460.0,0.00018273,2]
[373350206,1752961842771,-460.0,0.00018273,2]
[373350207,1752961842781,-288.5984559,0.00018273,2]
[373350208,1752961842790,-460.0,0.00018273,2]
[373350209,1752961842799,-298.13361043,0.00018273,2]
[373350210,1752961842812,-460.0,0.00018273,2]
[373350211,1752961842821,-460.0,0.00018273,2]
[373350212,1752961842830,-460.0,0.00018273,2]
[373350213,1752961842839,-460.0,0.00018273,2]
[373350214,1752961842849,-460.0,0.00018273,2]
[373350215,1752961842858,-460.0,0.00018273,2]
[373350216,1752961842868,-460.0,0.00018273,2]
[373350217,1752961842877,-460.0,0.00018273,2]
[373350218,1752961842887,-460.0,0.00018273,2]
[373350219,1752961842897,-188.97474229,0.00018273,2]
[373350220,1752961842906,-460.0,0.00018273,2]
[373350221,1752961842915,-460.0,0.00018273,2]
[373350222,1752961842925,-460.0,0.00018273,2]
[373350224,1752961842934,-460.0,0.00018273,2]
[373350225,1752961842943,-460.0,0.00018273,2]
[373350226,1752961842952,-460.0,0.00018273,2]
[373350227,1752961842962,-460.0,0.00018273,2]
[373350228,1752961842971,-460.0,0.00018273,2]
[373350229,1752961842980,-460.0,0.00018273,2]
[373350231,1752961842989,-460.0,0.00018273,2]
[373350232,1752961842998,-460.0,0.00018273,2]
[373350233,1752961843007,-460.0,0.00018273,2]
[373350234,1752961843017,-460.0,0.00018273,2]
[373350235,1752961843026,-460.0,0.00018273,2]
[373350236,1752961843035,-460.0,0.00018273,2]
[373350237,1752961843045,-460.0,0.00018273,2]
[373350238,1752961843054,-460.0,0.00018273,2]
[373350239,1752961843063,-460.0,0.00018273,2]
[373350240,1752961843072,-476.16,0.00018273,2]
[373350241,1752961843081,-460.0,0.00018273,2]
[373350242,1752961843090,-460.0,0.00018273,2]
[373350243,1752961843099,-460.0,0.00018273,2]
[373350244,1752961843108,-460.0,0.00018273,2]
[373350245,1752961843118,-460.0,0.00018273,2]
[373350246,1752961843126,-460.0,0.00018273,2]
[373350247,1752961843136,-460.0,0.00018273,2]
[373350248,1752961843145,-655.52,0.00018273,2]
[373350249,1752961843155,-460.0,0.00018273,2]
[373350250,1752961843164,-460.0,0.00018273,2]
[373350252,1752961843173,-460.0,0.00018273,2]
[373350254,1752961843182,-460.0,0.00018273,2]
[373350255,1752961843192,-198.36,0.00018273,2]
[373350256,1752961843201,-460.0,0.00018273,2]
[373350257,1752961843212,-460.0,0.00018273,2]
[373350258,1752961843221,-476.21034506,0.00018273,2]
[373350259,1752961843231,-975.33,0.00018273,2]
[373350260,1752961843240,-460.0,0.00018273,2]
[373350261,1752961843249,-1037.05,0.00018273,2]
[373350262,1752961843258,-9513.16059442,0.00018452,2]
[373350263,1752961843268,-858.6313577,0.00018541,2]
[373350264,1752961843277,-410.34,0.00018544,2]
[373350265,1752961843287,-460.0,0.00018544,2]
[373350266,1752961843296,-460.0,0.00018544,2]
[373350267,1752961843306,-460.0,0.00018544,2]
[373350268,1752961843315,-460.0,0.00018544,2]
[373350269,1752961843325,-460.0,0.00018544,2]
[373350271,1752961843334,-736.79,0.00018544,2]
[373350273,1752961843344,-460.0,0.00018544,2]
[373350275,1752961843354,-460.0,0.00018545,2]
[373350276,1752961843363,-460.0,0.00018545,2]
[373350277,1752961843372,-460.0,0.00018545,2]
[373350278,1752961843382,-460.0,0.00018545,2]
[373350279,1752961843392,-509.72,0.00018545,2]
[373350280,1752961843401,-460.0,0.00018545,2]
[373350281,1752961843411,-400.68965166,0.00018545,2]
[373350282,1752961843422,-460.0,0.00018545,2]
[373350283,1752961843433,-460.0,0.00018545,2]
[373350285,1752961843443,-460.0,0.00018545,2]
[373350287,1752961843455,-460.0,0.00018545,2]
[373350288,1752961843466,-460.0,0.00018545,2]
[373350289,1752961843477,-460.0,0.00018545,2]
[373350290,1752961843487,-460.0,0.00018545,2]
[373350291,1752961843497,-460.0,0.00018545,2]
[373350292,1752961843510,-460.0,0.00018545,2]
[373350293,1752961843523,-460.0,0.00018545,2]
[373350294,1752961843534,-555.37,0.00018545,2]
[373350295,1752961843543,-460.0,0.00018545,2]
[373350296,1752961843552,-460.0,0.00018545,2]
[373350297,1752961843562,-460.0,0.00018545,2]
[373350298,1752961843571,-1144.31,0.00018545,2]
[373350299,1752961843581,-460.0,0.00018545,2]
[373350300,1752961843590,-566.05362168,0.00018545,2]
[373350301,1752961843599,-460.0,0.00018545,2]
[373350302,1752961843608,-460.0,0.00018545,2]
[373350303,1752961843618,-460.0,0.00018545,2]
[373350304,1752961843627,-460.0,0.00018545,2]
[373350305,1752961843637,-1792.78,0.00018545,2]
[373350306,1752961843646,-1310.48,0.00018545,2]
[373350307,1752961843655,-460.0,0.00018545,2]
[373350308,1752961843665,-460.0,0.00018545,2]
[373350309,1752961843674,-460.0,0.00018545,2]
[373350310,1752961843684,-460.0,0.00018545,2]
[373350311,1752961843693,-460.0,0.00018545,2]
[373350312,1752961843702,-460.0,0.00018545,2]
[373350313,1752961843711,-460.0,0.00018545,2]
[373350314,1752961843721,-460.0,0.00018545,2]
[373350315,1752961843730,-460.0,0.00018545,2]
[373350316,1752961843739,-460.0,0.00018545,2]
[373350317,1752961843748,-571.29,0.00018545,2]
[373350318,1752961843757,-512.3,0.00018545,2]
[373350319,1752961843766,-460.0,0.00018545,2]
[373350320,1752961843776,-460.0,0.00018545,2]
[373350322,1752961843785,-460.0,0.00018545,2]
[373350324,1752961843794,-374.24,0.00018545,2]
[373350326,1752961843803,-460.0,0.00018545,2]
[373350328,1752961843812,-460.0,0.00018545,2]
[373350330,1752961843821,-1418.71,0.00018545,2]
[373350332,1752961843830,-460.0,0.00018545,2]
[373350334,1752961843839,-460.0,0.00018545,2]
[373350336,1752961843848,-460.0,0.00018545,2]
[373350338,1752961843857,-500.0,0.00018545,2]
[373350340,1752961843866,-460.0,0.00018545,2]
[373350341,1752961843876,-460.0,0.00018545,2]
[373350342,1752961843886,-460.0,0.00018545,2]
[373350343,1752961843895,-460.0,0.00018545,2]
[373350344,1752961843904,-460.0,0.00018545,2]
[373350345,1752961843914,-460.0,0.00018545,2]
[373350346,1752961843923,-460.0,0.00018545,2]
[373350347,1752961843932,-460.0,0.00018545,2]
[373350348,1752961843941,-460.0,0.00018545,2]
[373350349,1752961843950,-460.0,0.00018545,2]
[373350350,1752961843960,-460.0,0.00018545,2]
[373350351,1752961843969,-460.0,0.00018546,2]
[373350352,1752961843978,-367.15050101,0.00018546,2]
[373350353,1752961843988,-460.0,0.00018546,2]
[373350354,1752961843997,-460.0,0.00018546,2]
[373350355,1752961844006,-460.0,0.00018546,2]
[373350356,1752961844015,-460.0,0.00018546,2]
[373350357,1752961844025,-460.0,0.00018546,2]
[373350358,1752961844034,-460.0,0.00018546,2]
[373350359,1752961844043,-500.0,0.00018546,2]
[373350360,1752961844052,-791.31,0.00018546,2]
[373350361,1752961844062,-460.0,0.00018546,2]
[373350362,1752961844071,-543.72,0.00018546,2]
[373350363,1752961844081,-1978.99,0.00018546,2]
[373350364,1752961844090,-460.0,0.00018547,2]
[373350365,1752961844100,-460.0,0.00018547,2]
[373350366,1752961844109,-460.0,0.00018547,2]
[373350367,1752961844119,-460.0,0.00018547,2]
[373350368,1752961844129,-460.0,0.00018547,2]
[373350369,1752961844138,-460.0,0.00018547,2]
[373350370,1752961844148,-460.0,0.00018547,2]
[373350371,1752961844157,-292.80812658,0.00018547,2]
[373350372,1752961844167,-460.0,0.00018547,2]
[373350373,1752961844177,-460.0,0.00018547,2]
[373350374,1752961844186,-460.0,0.00018547,2]
[373350375,1752961844197,-460.0,0.00018547,2]
[373350376,1752961844207,-460.0,0.00018547,2]
[373350377,1752961844218,-460.0,0.00018547,2]
[373350378,1752961844228,-460.0,0.00018547,2]
[373350379,1752961844237,-465.57713555,0.00018547,2]
[373350380,1752961844247,-460.0,0.00018547,2]
[373350381,1752961844256,-460.0,0.00018547,2]
[373350382,1752961844266,-460.0,0.00018547,2]
[373350383,1752961844275,-460.0,0.00018547,2]
[373350384,1752961844285,-175.48170341,0.00018547,2]
[373350385,1752961844296,-181.96,0.00018547,2]
[373350386,1752961844305,-460.0,0.00018547,2]
[373350387,1752961844315,-460.0,0.00018547,2]
[373350388,1752961844326,-460.0,0.00018547,2]
[373350389,1752961844336,-460.0,0.00018547,2]
[373350390,1752961844346,-476.16,0.00018547,2]
[373350391,1752961844355,-460.0,0.00018547,2]
[373350392,1752961844365,-478.61,0.00018547,2]
[373350393,1752961844375,-460.0,0.00018547,2]
[373350394,1752961844385,-460.0,0.00018547,2]
[373350395,1752961844394,-460.0,0.00018547,2]
[373350396,1752961844404,-460.0,0.00018547,2]
[373350397,1752961844414,-655.52,0.00018547,2]
[373350398,1752961844426,-460.0,0.00018547,2]
[373350399,1752961844437,-460.0,0.00018547,2]
[373350400,1752961844447,-460.0,0.00018547,2]
[373350401,1752961844456,-975.33,0.00018547,2]
[373350402,1752961844468,-460.0,0.00018547,2]
[373350403,1752961844478,-1037.05,0.00018547,2]
[373350404,1752961844488,-306.1586121,0.00018578,2]
[373350405,1752961844502,-320.1890901,0.00018578,2]
[373350406,1752961844512,-500.0,0.0001867,2]
[373350407,1752961844524,-500.0,0.0001867,2]
[373350408,1752961844534,-500.0,0.0001867,2]
[373350409,1752961844545,-505.50054643,0.0001867,2]
[373350410,1752961844555,-500.0,0.0001867,2]
[373350411,1752961844564,-500.21839406,0.0001867,2]
[373350412,1752961844574,-434.28458916,0.0001867,2]
[373350413,1752961844583,-500.0,0.0001867,2]
[373350414,1752961844593,-500.0,0.0001867,2]
[373350415,1752961844603,-153.0,0.00018678,2]
[373350416,1752961844613,-153.0,0.00018678,2]
[373350417,1752961844622,-153.0,0.00018678,2]
[373350418,1752961844632,-500.0,0.00018721,2]
[373350419,1752961844641,-500.0,0.00018721,2]
[373350420,1752961844650,-500.0,0.00018721,2]
[373350421,1752961844660,-500.0,0.00018721,2]
[373350422,1752961844670,-207.20524822,0.00018721,2]
[373350423,1752961844680,-9513.16059442,0.00018728,2]
[373350424,1752961844689,-500.0,0.00018754,2]
[373350425,1752961844699,-325.8122194,0.00018765,2]
[373350426,1752961844709,-401.99787198,0.00018798,2]
[373350427,1752961844719,-586.2915561,0.00018818,2]
[373350428,1752961844729,-460.0,0.00018818,2]
[373350429,1752961844738,-460.0,0.00018818,2]
[373350430,1752961844747,-460.0,0.00018818,2]
[373350431,1752961844757,-607.51015713,0.00018818,2]
[373350432,1752961844766,-736.79,0.00018818,2]
[373350433,1752961844776,-460.0,0.00018818,2]
[373350434,1752961844785,-460.0,0.00018819,2]
[373350435,1752961844794,-460.0,0.00018819,2]
[373350436,1752961844804,-460.0,0.00018819,2]
[373350437,1752961844813,-509.72,0.00018819,2]
[373350438,1752961844823,-388.59715214,0.00018819,2]
[373350439,1752961844832,-460.0,0.00018819,2]
[373350440,1752961844842,-460.0,0.00018819,2]
[373350441,1752961844851,-460.0,0.00018819,2]
[373350442,1752961844861,-460.0,0.00018819,2]
[373350443,1752961844870,-460.0,0.00018819,2]
[373350444,1752961844879,-251.53963551,0.00018819,2]
[373350445,1752961844889,-460.0,0.00018819,2]
[373350446,1752961844899,-460.0,0.00018819,2]
[373350447,1752961844908,-460.0,0.00018819,2]
[373350448,1752961844917,-460.0,0.00018819,2]
[373350449,1752961844926,-555.37,0.00018819,2]
[373350450,1752961844936,-460.0,0.00018819,2]
[373350451,1752961844945,-460.0,0.00018819,2]
[373350452,1752961844954,-460.0,0.00018819,2]
[373350453,1752961844963,-1144.31,0.00018819,2]
[373350454,1752961844972,-460.0,0.00018819,2]
[373350455,1752961844982,-460.0,0.00018819,2]
[373350456,1752961844991,-460.0,0.00018819,2]
[373350457,1752961845001,-460.0,0.00018819,2]
[373350458,1752961845010,-460.0,0.00018819,2]
[373350459,1752961845019,-1792.78,0.00018819,2]
[373350460,1752961845029,-1310.48,0.00018819,2]
[373350461,1752961845039,-460.0,0.00018819,2]
[373350462,1752961845048,-460.0,0.00018819,2]
[373350463,1752961845058,-460.0,0.00018819,2]
[373350464,1752961845067,-460.0,0.00018819,2]
[373350465,1752961845077,-460.0,0.00018819,2]
[373350466,1752961845086,-460.0,0.00018819,2]
[373350467,1752961845096,-460.0,0.00018819,2]
[373350468,1752961845105,-460.0,0.00018819,2]
[373350469,1752961845115,-460.0,0.00018819,2]
[373350470,1752961845228,-460.0,0.00018819,2]
[373350471,1752961845237,-571.29,0.00018819,2]
[373350472,1752961845247,-512.3,0.00018819,2]
[373350473,1752961845256,-460.0,0.00018819,2]
[373350474,1752961845266,-460.0,0.00018819,2]
[373350475,1752961845275,-460.0,0.00018819,2]
[373350476,1752961845284,-460.0,0.00018819,2]
[373350477,1752961845294,-460.0,0.00018819,2]
[373350478,1752961845303,-1418.71,0.00018819,2]
[373350479,1752961845314,-460.0,0.00018819,2]
[373350480,1752961845323,-460.0,0.00018819,2]
[373350481,1752961845333,-460.0,0.00018819,2]
[373350482,1752961845344,-460.0,0.00018819,2]
[373350483,1752961845354,-460.0,0.00018819,2]
[373350484,1752961845364,-460.0,0.00018819,2]
[373350485,1752961845374,-460.0,0.00018819,2]
[373350486,1752961845384,-460.0,0.00018819,2]
[373350487,1752961845394,-460.0,0.00018819,2]
[373350488,1752961845403,-460.0,0.00018819,2]
[373350489,1752961845413,-460.0,0.00018819,2]
[373350490,1752961845427,-460.0,0.00018819,2]
[373350491,1752961845437,-460.0,0.00018819,2]
[373350492,1752961845447,-435.2613308,0.0001882,2]
[373350493,1752961845465,-460.0,0.0001882,2]
[373350494,1752961845478,-460.0,0.0001882,2]
[373350495,1752961845489,-445.54922651,0.0001882,2]
[373350496,1752961845500,-460.0,0.0001882,2]
[373350497,1752961845511,-460.0,0.0001882,2]
[373350498,1752961845523,-500.0,0.0001882,2]
[373350499,1752961845533,-791.31,0.0001882,2]
[373350500,1752961845544,-460.0,0.0001882,2]
[373350501,1752961845554,-543.72,0.0001882,2]
[373350502,1752961845567,-1978.99,0.0001882,2]
[373350503,1752961845579,-460.0,0.00018821,2]
[373350504,1752961845589,-460.0,0.00018821,2]
[373350505,1752961845600,-460.0,0.00018821,2]
[373350506,1752961845611,-460.0,0.00018821,2]
[373350507,1752961845622,-460.0,0.00018821,2]
[373350508,1752961845633,-460.0,0.00018821,2]
[373350509,1752961845644,-385.53898709,0.00018821,2]
[373350510,1752961845654,-460.0,0.00018821,2]
[373350511,1752961845664,-460.0,0.00018821,2]
[373350512,1752961845675,-460.0,0.00018821,2]
[373350513,1752961845686,-460.0,0.00018821,2]
[373350514,1752961845696,-301.07,0.00018821,2]
[373350515,1752961845706,-560.31337563,0.00018821,2]
[373350516,1752961845718,-460.0,0.00018821,2]
[373350517,1752961845728,-460.0,0.00018821,2]
[373350518,1752961845738,-460.0,0.00018821,2]
[373350519,1752961845747,-460.0,0.00018821,2]
[373350520,1752961845757,-460.0,0.00018821,2]
[373350521,1752961845767,-476.16,0.00018821,2]
[373350522,1752961845777,-460.0,0.00018821,2]
[373350523,1752961845787,-460.0,0.00018821,2]
[373350524,1752961845797,-460.0,0.00018821,2]
[373350525,1752961845807,-460.0,0.00018821,2]
[373350526,1752961845816,-450.53971998,0.00018821,2]
[373350527,1752961845826,-655.52,0.00018821,2]
[373350528,1752961845836,-460.0,0.00018821,2]
[373350529,1752961845845,-460.0,0.00018821,2]
[373350530,1752961845855,-460.0,0.00018821,2]
[373350531,1752961845865,-975.33,0.00018821,2]
[373350532,1752961845875,-460.0,0.00018821,2]
[373350533,1752961845884,-1037.05,0.00018821,2]
[373350534,1752961845894,-500.0,0.00018843,2]
[373350535,1752961845905,-500.0,0.00018843,2]
[373350536,1752961845915,-500.0,0.00018843,2]
[373350537,1752961845925,-500.0,0.00018843,2]
[373350539,1752961845935,-503.58664453,0.00018843,2]
[373350540,1752961845946,-500.0,0.00018843,2]
[373350542,1752961845956,-504.22089586,0.00018843,2]
[373350544,1752961845967,-835.12,0.00018856,2]
[373350545,1752961845977,-460.0,0.00018863,2]
[373350546,1752961845988,-835.12,0.00018864,2]
[373350547,1752961845998,-835.12,0.00018864,2]
[373350549,1752961846009,-835.12,0.00018864,2]
[373350550,1752961846019,-835.12,0.00018864,2]
[373350551,1752961846029,-835.12,0.00018864,2]
[373350552,1752961846039,-835.12,0.00018865,2]
[373350553,1752961846048,-460.0,0.00018865,2]
[373350554,1752961846058,-460.0,0.00018865,2]
[373350555,1752961846068,-929.09,0.00018865,2]
[373350556,1752961846078,-415.78513781,0.00018865,2]
[373350557,1752961846089,-780.24,0.00018865,2]
[373350558,1752961846102,-460.0,0.00018865,2]
[373350559,1752961846112,-500.0,0.00018865,2]
[373350560,1752961846123,-835.12,0.00018866,2]
[373350561,1752961846133,-835.12,0.00018866,2]
[373350562,1752961846143,-835.12,0.00018866,2]
[373350563,1752961846153,-835.12,0.00018866,2]
[373350564,1752961846163,-835.12,0.00018866,2]
[373350565,1752961846174,-835.12,0.00018866,2]
[373350566,1752961846184,-500.0,0.00018866,2]
[373350567,1752961846195,-460.0,0.00018867,2]
[373350568,1752961846204,-460.0,0.00018867,2]
[373350569,1752961846215,-266.59270214,0.00018867,2]
[373350570,1752961846224,-460.0,0.00018867,2]
[373350572,1752961846234,-479.16,0.00018867,2]
[373350574,1752961846244,-460.0,0.00018867,2]
[373350577,1752961846254,-460.0,0.00018867,2]
[373350578,1752961846264,-216.39681154,0.00018867,2]
[373350579,1752961846274,-835.12,0.00018868,2]
[373350580,1752961846285,-800.0,0.00018872,2]
[373350582,1752961846295,-500.0,0.00018872,2]
[373350583,1752961846307,-207.11704758,0.00018873,2]
[373350584,1752961846317,-500.0,0.00018873,2]
[373350585,1752961846327,-578.16123065,0.00018873,2]
[373350586,1752961846339,-500.0,0.00018873,2]
[373350588,1752961846349,-500.0,0.00018873,2]
[373350589,1752961846360,-500.0,0.00018873,2]
[373350590,1752961846371,-480.78934041,0.00018873,2]
[373350591,1752961846382,-291.33809974,0.00018873,2]
[373350592,1752961846393,-214.26297717,0.00018873,2]
[373350593,1752961846403,-500.0,0.00018873,2]
[373350595,1752961846413,-512.65705704,0.00018873,2]
[373350597,1752961846428,-500.0,0.00018873,2]
[373350599,1752961846439,-835.12,0.00018899,2]
[373350600,1752961846449,-858.4824182,0.000189,2]
[373350601,1752961846459,-356.1016652,0.000189,2]
[373350602,1752961846471,-1153.917266,0.000189,2]
[373350603,1752961846481,-159.7589233,0.000189,2]
[373350604,1752961846491,-500.0,0.00018923,2]
[373350605,1752961846502,-500.0,0.00018923,2]
[373350606,1752961846512,-172.73037819,0.00018928,2]
[373350607,1752961846523,-500.0,0.00018928,2]
[373350608,1752961846532,-232.79235763,0.00018947,2]
[373350609,1752961846543,-500.0,0.00018947,2]
[373350610,1752961846553,-9513.16059442,0.00019003,2]
[373350611,1752961846563,-500.0,0.00019039,2]
[373350612,1752961846574,-2902.79461444,0.00019073,2]
[373350613,1752961846587,-460.0,0.00019092,2]
[373350614,1752961846597,-460.0,0.00019092,2]
[373350615,1752961846607,-460.0,0.00019092,2]
[373350616,1752961846617,-736.79,0.00019092,2]
[373350617,1752961846627,-460.0,0.00019092,2]
[373350618,1752961846637,-460.0,0.00019093,2]
[373350619,1752961846648,-460.0,0.00019093,2]
[373350620,1752961846657,-334.21962651,0.00019093,2]
[373350621,1752961846667,-509.72,0.00019093,2]
[373350622,1752961846677,-460.0,0.00019093,2]
[373350623,1752961846687,-460.0,0.00019093,2]
[373350624,1752961846697,-460.0,0.00019093,2]
[373350625,1752961846706,-460.0,0.00019093,2]
[373350626,1752961846717,-460.0,0.00019093,2]
[373350627,1752961846726,-460.0,0.00019093,2]
[373350628,1752961846737,-460.0,0.00019093,2]
[373350629,1752961846747,-460.0,0.00019093,2]
[373350630,1752961846756,-460.0,0.00019093,2]
[373350631,1752961846766,-555.37,0.00019093,2]
[373350632,1752961846776,-460.0,0.00019093,2]
[373350633,1752961846786,-460.0,0.00019093,2]
[373350634,1752961846796,-460.0,0.00019093,2]
[373350636,1752961846805,-1144.31,0.00019093,2]
[373350637,1752961846815,-460.0,0.00019093,2]
[373350638,1752961846825,-460.0,0.00019093,2]
[373350639,1752961846835,-460.0,0.00019093,2]
[373350640,1752961846844,-460.0,0.00019093,2]
[373350641,1752961846854,-1792.78,0.00019093,2]
[373350642,1752961846864,-1310.48,0.00019093,2]